[Event "Gibraltar Masters 18th"]
[Site "Gibraltar"]
[Date "2020.01.22"]
[Round "2.52"]
[White "Matlakov, Maxim"]
[Black "Mihajlov, Svetoslav"]
[Result "1-0"]
[ECO "B22"]
[WhiteElo "2698"]
[BlackElo "2173"]
[PlyCount "69"]
[EventDate "2020.01.21"]
[EventType "swiss"]
[EventRounds "10"]
[EventCountry "GGB"]
[SourceTitle "BritBase"]
[Source "John Saunders"]
[SourceDate "2021.06.05"]
[SourceVersion "1"]
[SourceVersionDate "2021.06.05"]
[SourceQuality "1"]
[TimeControl "40/100:0"]
[WhiteClock "0:13:04"]
[BlackClock "0:03:35"]

1. e4 {[%emt 0:00:00]} c5 {[%emt 0:00:00]} 2. Nf3 {[%emt 0:00:00]} e6 {[%emt 0:
00:00]} 3. c3 {[%emt 0:00:00]} Nf6 {[%emt 0:00:00]} 4. e5 {[%emt 0:00:00]} Nd5
{[%emt 0:00:00]} 5. d4 {[%emt 0:00:00]} cxd4 {[%emt 0:00:00]} 6. cxd4 {[%emt 0:
00:00]} d6 {[%emt 0:00:00]} 7. Bc4 {[%emt 0:00:00]} Nc6 {[%emt 0:00:00]} 8. O-O
{[%emt 0:00:00]} Be7 {[%emt 0:00:00]} 9. Qe2 {[%emt 0:00:00]} Nb6 {[%emt 0:00:
00]} 10. Bb3 {[%emt 0:00:00]} O-O {[%emt 0:00:00]} 11. Nc3 {[%emt 0:00:00]} d5
{[%emt 0:00:00]} 12. Bf4 {[%emt 0:00:00]} Bd7 {[%emt 0:00:00]} 13. Rad1 {
[%emt 0:00:00]} a6 {[%emt 0:00:00]} 14. Bc2 {[%emt 0:00:00]} f5 {[%emt 0:00:00]
} 15. exf6 {[%emt 0:00:00]} gxf6 {[%emt 0:00:00]} 16. b3 {[%emt 0:00:00]} Rc8 {
[%emt 0:00:00]} 17. Bb1 {[%emt 0:00:00]} Rf7 {[%emt 0:00:00]} 18. Qe3 {[%emt 0:
00:00]} Kh8 {[%emt 0:00:00]} 19. Ne2 {[%emt 0:00:00]} Qe8 {[%emt 0:00:00]} 20.
Bg3 {[%emt 0:00:00]} Rg7 {[%emt 0:00:00]} 21. Qh6 {[%emt 0:00:00]} Nd8 {
[%emt 0:00:00]} 22. Nf4 {[%emt 0:00:00]} Nf7 {[%emt 0:00:00]} 23. Qh4 {[%emt 0:
00:00]} Ng5 {[%emt 0:00:00]} 24. Nh5 {[%emt 0:00:00]} Nxf3+ {[%emt 0:00:00]}
25. gxf3 {[%emt 0:00:00]} Rg6 {[%emt 0:00:00]} 26. Bxg6 {[%emt 0:00:00]} Qxg6 {
[%emt 0:00:00]} 27. Rfe1 {[%emt 0:00:00]} Rg8 {[%emt 0:00:00]} 28. Kh1 {
[%emt 0:00:00]} Qf5 {[%emt 0:00:00]} 29. Re3 {[%emt 0:00:00]} Rg5 {[%emt 0:00:
00]} 30. Nf4 {[%emt 0:00:00]} Bb4 {[%emt 0:00:00]} 31. Nd3 {[%emt 0:00:00]} Ba3
{[%emt 0:00:00]} 32. Rde1 {[%emt 0:00:00]} Nc8 {[%emt 0:00:00]} 33. Qf4 {
[%emt 0:00:00]} b6 {[%emt 0:00:00]} 34. Qc7 {[%emt 0:00:00]} Rg7 {[%emt 0:00:
00]} 35. Qd8+ {[%emt 0:00:00] Rg6 Qc7} 1-0

[Event "Gibraltar Masters 18th"]
[Site "Gibraltar"]
[Date "2020.01.22"]
[Round "2.53"]
[White "Vega Gutierrez, Sabrina"]
[Black "Jones, Gawain C B"]
[Result "0-1"]
[ECO "C50"]
[WhiteElo "2364"]
[BlackElo "2679"]
[PlyCount "106"]
[EventDate "2020.01.21"]
[EventType "swiss"]
[EventRounds "10"]
[EventCountry "GGB"]
[SourceTitle "BritBase"]
[Source "John Saunders"]
[SourceDate "2021.06.05"]
[SourceVersion "1"]
[SourceVersionDate "2021.06.05"]
[SourceQuality "1"]
[TimeControl "40/100:0"]
[WhiteClock "0:03:39"]
[BlackClock "0:39:38"]

1. e4 {[%emt 0:00:00]} e5 {[%emt 0:00:00]} 2. Nf3 {[%emt 0:00:00]} Nc6 {
[%emt 0:00:00]} 3. Bc4 {[%emt 0:00:00]} Nf6 {[%emt 0:00:00]} 4. d3 {[%emt 0:00:
00]} h6 {[%emt 0:00:00]} 5. h3 {[%emt 0:00:00]} Bc5 {[%emt 0:00:00]} 6. Nc3 {
[%emt 0:00:00]} a6 {[%emt 0:00:00]} 7. Nd5 {[%emt 0:00:00]} d6 {[%emt 0:00:00]}
8. c3 {[%emt 0:00:00]} Ba7 {[%emt 0:00:00]} 9. O-O {[%emt 0:00:00]} Na5 {
[%emt 0:00:00]} 10. Nxf6+ {[%emt 0:00:00]} Qxf6 {[%emt 0:00:00]} 11. Qa4+ {
[%emt 0:00:00]} Nc6 {[%emt 0:00:00]} 12. Qd1 {[%emt 0:00:00]} g5 {[%emt 0:00:
00]} 13. Nh2 {[%emt 0:00:00]} h5 {[%emt 0:00:00]} 14. Qf3 {[%emt 0:00:00]} Qxf3
{[%emt 0:00:00]} 15. Nxf3 {[%emt 0:00:00]} g4 {[%emt 0:00:00]} 16. Nh4 {
[%emt 0:00:00]} gxh3 {[%emt 0:00:00]} 17. g3 {[%emt 0:00:00]} Na5 {[%emt 0:00:
00]} 18. Bd5 {[%emt 0:00:00]} c6 {[%emt 0:00:00]} 19. Bxf7+ {[%emt 0:00:00]}
Kxf7 {[%emt 0:00:00]} 20. b4 {[%emt 0:00:00]} Nc4 {[%emt 0:00:00]} 21. dxc4 {
[%emt 0:00:00]} Be6 {[%emt 0:00:00]} 22. c5 {[%emt 0:00:00]} dxc5 {[%emt 0:00:
00]} 23. Be3 {[%emt 0:00:00]} cxb4 {[%emt 0:00:00]} 24. Bxa7 {[%emt 0:00:00]}
Rxa7 {[%emt 0:00:00]} 25. cxb4 {[%emt 0:00:00]} a5 {[%emt 0:00:00]} 26. a3 {
[%emt 0:00:00]} axb4 {[%emt 0:00:00]} 27. axb4 {[%emt 0:00:00]} Rxa1 {[%emt 0:
00:00]} 28. Rxa1 {[%emt 0:00:00]} Rd8 {[%emt 0:00:00]} 29. Ra7 {[%emt 0:00:00]}
Rd7 {[%emt 0:00:00]} 30. Nf3 {[%emt 0:00:00]} Kf6 {[%emt 0:00:00]} 31. Kh2 {
[%emt 0:00:00]} Rd3 {[%emt 0:00:00]} 32. Ng1 {[%emt 0:00:00]} b5 {[%emt 0:00:
00]} 33. Rc7 {[%emt 0:00:00]} Bd7 {[%emt 0:00:00]} 34. Nxh3 {[%emt 0:00:00]}
Rd4 {[%emt 0:00:00]} 35. Kg2 {[%emt 0:00:00]} Ke7 {[%emt 0:00:00]} 36. Ng5 {
[%emt 0:00:50]} Rxb4 {[%emt 0:00:00]} 37. f4 {[%emt 0:00:00]} Rb2+ {[%emt 0:00:
00]} 38. Kg1 {[%emt 0:00:04]} exf4 {[%emt 0:00:00]} 39. gxf4 {[%emt 0:00:00]}
Kd6 {[%emt 0:00:00]} 40. Ra7 {[%emt 0:00:00]} Bg4 {[%emt 0:00:00]} 41. Nf7+ {
[%emt 0:00:00]} Kc5 {[%emt 0:00:00]} 42. Ne5 {[%emt 0:00:00]} Re2 {[%emt 0:00:
00]} 43. Ra6 {[%emt 0:00:00]} Rxe4 {[%emt 0:00:00]} 44. Rxc6+ {[%emt 0:00:00]}
Kd4 {[%emt 0:00:00]} 45. Rb6 {[%emt 0:00:00]} Be2 {[%emt 0:00:00]} 46. Ng6 {
[%emt 0:00:00]} Bc4 {[%emt 0:00:00]} 47. Kf2 {[%emt 0:00:00]} Re6 {[%emt 0:00:
00]} 48. Rxe6 {[%emt 0:00:00]} Bxe6 {[%emt 0:00:00]} 49. Ne7 {[%emt 0:00:00]}
Ke4 {[%emt 0:00:00]} 50. Kg3 {[%emt 0:00:00]} b4 {[%emt 0:00:00]} 51. Nc6 {
[%emt 0:00:00]} b3 {[%emt 0:00:00]} 52. Ne5 {[%emt 0:00:00]} b2 {[%emt 0:00:00]
} 53. Nf3 {[%emt 0:00:00]} Ke3 {[%emt 0:00:00]} 0-1

[Event "Gibraltar Masters 18th"]
[Site "Gibraltar"]
[Date "2020.01.22"]
[Round "2.54"]
[White "Adhiban, Baskaran"]
[Black "Gschnitzer, Oswald"]
[Result "1-0"]
[ECO "E39"]
[WhiteElo "2654"]
[BlackElo "2361"]
[PlyCount "53"]
[EventDate "2020.01.21"]
[EventType "swiss"]
[EventRounds "10"]
[EventCountry "GGB"]
[SourceTitle "BritBase"]
[Source "John Saunders"]
[SourceDate "2021.06.05"]
[SourceVersion "1"]
[SourceVersionDate "2021.06.05"]
[SourceQuality "1"]
[TimeControl "40/100:0"]
[WhiteClock "0:39:56"]
[BlackClock "0:19:13"]

1. d4 {[%emt 0:00:00]} Nf6 {[%emt 0:00:00]} 2. c4 {[%emt 0:00:00]} e6 {[%emt 0:
00:00]} 3. Nc3 {[%emt 0:00:00]} Bb4 {[%emt 0:00:00]} 4. Qc2 {[%emt 0:00:00]}
O-O {[%emt 0:00:00]} 5. Nf3 {[%emt 0:00:00]} c5 {[%emt 0:00:00]} 6. dxc5 {
[%emt 0:00:00]} Na6 {[%emt 0:00:00]} 7. g3 {[%emt 0:00:00]} Nxc5 {[%emt 0:00:
00]} 8. Bg2 {[%emt 0:00:00]} b6 {[%emt 0:00:00]} 9. O-O {[%emt 0:00:00]} Bb7 {
[%emt 0:00:00]} 10. Nb5 {[%emt 0:00:00]} Be4 {[%emt 0:00:00]} 11. Qd1 {[%emt 0:
00:00]} Nb7 {[%emt 0:00:00]} 12. a3 {[%emt 0:00:00]} a6 {[%emt 0:00:00]} 13.
axb4 {[%emt 0:00:00]} axb5 {[%emt 0:00:00]} 14. Rxa8 {[%emt 0:00:00]} Qxa8 {
[%emt 0:00:00]} 15. b3 {[%emt 0:00:00]} bxc4 {[%emt 0:00:00]} 16. bxc4 {
[%emt 0:00:00]} d5 {[%emt 0:00:00]} 17. cxd5 {[%emt 0:00:00]} Bxd5 {[%emt 0:00:
00]} 18. Bb2 {[%emt 0:00:00]} Rd8 {[%emt 0:00:00]} 19. Bxf6 {[%emt 0:00:00]}
gxf6 {[%emt 0:00:00]} 20. Qc1 {[%emt 0:00:00]} Kg7 {[%emt 0:00:00]} 21. Qc7 {
[%emt 0:00:00]} Rd6 {[%emt 0:00:00]} 22. e4 {[%emt 0:00:00]} Rc6 {[%emt 0:00:
00]} 23. Qf4 {[%emt 0:00:00]} Rc4 {[%emt 0:00:00]} 24. Ne5 {[%emt 0:00:00]}
fxe5 {[%emt 0:00:00]} 25. Qg5+ {[%emt 0:00:00]} Kf8 {[%emt 0:00:00]} 26. exd5 {
[%emt 0:00:00]} e4 {[%emt 0:00:00]} 27. dxe6 {[%emt 0:00:00]} 1-0

[Event "Gibraltar Masters 18th"]
[Site "Gibraltar"]
[Date "2020.01.22"]
[Round "2.55"]
[White "Salimova, Nurgyul"]
[Black "Sasikiran, Krishnan"]
[Result "0-1"]
[ECO "D85"]
[WhiteElo "2372"]
[BlackElo "2648"]
[PlyCount "170"]
[EventDate "2020.01.21"]
[EventType "swiss"]
[EventRounds "10"]
[EventCountry "GGB"]
[SourceTitle "BritBase"]
[Source "John Saunders"]
[SourceDate "2021.06.05"]
[SourceVersion "1"]
[SourceVersionDate "2021.06.05"]
[SourceQuality "1"]
[TimeControl "40/100:0"]
[WhiteClock "0:01:04"]
[BlackClock "0:02:06"]

1. d4 {[%emt 0:00:00]} Nf6 {[%emt 0:00:00]} 2. c4 {[%emt 0:00:00]} g6 {[%emt 0:
00:00]} 3. Nc3 {[%emt 0:00:00]} d5 {[%emt 0:00:00]} 4. cxd5 {[%emt 0:00:00]}
Nxd5 {[%emt 0:00:00]} 5. e4 {[%emt 0:00:00]} Nxc3 {[%emt 0:00:00]} 6. bxc3 {
[%emt 0:00:00]} Bg7 {[%emt 0:00:00]} 7. Qa4+ {[%emt 0:00:00]} Nd7 {[%emt 0:00:
00]} 8. Nf3 {[%emt 0:00:00]} O-O {[%emt 0:00:00]} 9. Be2 {[%emt 0:00:00]} c5 {
[%emt 0:00:00]} 10. O-O {[%emt 0:00:00]} a6 {[%emt 0:00:00]} 11. Qa3 {[%emt 0:
00:00]} Qc7 {[%emt 0:00:00]} 12. e5 {[%emt 0:00:00]} b6 {[%emt 0:00:00]} 13.
Bg5 {[%emt 0:00:00]} Re8 {[%emt 0:00:00]} 14. Qb3 {[%emt 0:00:00]} e6 {[%emt 0:
00:00]} 15. a4 {[%emt 0:00:00]} Bb7 {[%emt 0:00:00]} 16. Rfc1 {[%emt 0:00:00]}
Rab8 {[%emt 0:00:00]} 17. Qb2 {[%emt 0:00:00]} f6 {[%emt 0:00:00]} 18. exf6 {
[%emt 0:00:00]} Nxf6 {[%emt 0:00:00]} 19. Re1 {[%emt 0:00:00]} Nd5 {[%emt 0:00:
00]} 20. Qd2 {[%emt 0:00:00]} Rbc8 {[%emt 0:00:00]} 21. Rac1 {[%emt 0:00:00]}
Qd6 {[%emt 0:00:00]} 22. c4 {[%emt 0:00:00]} Nb4 {[%emt 0:00:00]} 23. dxc5 {
[%emt 0:00:00]} Qxd2 {[%emt 0:00:00]} 24. Nxd2 {[%emt 0:00:00]} bxc5 {[%emt 0:
00:00]} 25. Nb3 {[%emt 0:00:00]} Bb2 {[%emt 0:00:00]} 26. Rcd1 {[%emt 0:00:00]}
Be4 {[%emt 0:00:00]} 27. Rd6 {[%emt 0:00:00]} Be5 {[%emt 0:00:00]} 28. Rd7 {
[%emt 0:00:00]} Nc2 {[%emt 0:00:00]} 29. Bf3 {[%emt 0:00:00]} Bxf3 {[%emt 0:00:
21]} 30. Rxe5 {[%emt 0:00:00]} Bc6 {[%emt 0:00:00]} 31. Rd6 {[%emt 0:00:00]}
Bxa4 {[%emt 0:00:00]} 32. Nxc5 {[%emt 0:00:00]} Na3 {[%emt 0:00:00]} 33. Rdxe6
{[%emt 0:00:05]} Nxc4 {[%emt 0:00:00]} 34. Rxe8+ {[%emt 0:00:00]} Bxe8 {
[%emt 0:00:00]} 35. Rd5 {[%emt 0:00:39]} a5 {[%emt 0:00:00]} 36. Ne4 {[%emt 0:
00:22]} a4 {[%emt 0:00:07]} 37. Rd8 {[%emt 0:00:00]} Rxd8 {[%emt 0:00:19]} 38.
Bxd8 {[%emt 0:00:00]} Bc6 {[%emt 0:00:00]} 39. Nc5 {[%emt 0:00:00]} Kf7 {
[%emt 0:00:06]} 40. Bg5 {[%emt 0:00:00]} a3 {[%emt 0:00:12]} 41. Bc1 {[%emt 0:
01:43]} a2 {[%emt 0:00:00]} 42. Nb3 {[%emt 0:00:00]} Ke6 {[%emt 0:00:00]} 43.
Kf1 {[%emt 0:00:00]} Ba4 {[%emt 0:00:00]} 44. Na1 {[%emt 0:00:00]} Bb5 {
[%emt 0:00:00]} 45. Ke1 {[%emt 0:00:00]} Kd5 {[%emt 0:00:00]} 46. Bh6 {[%emt 0:
00:00]} Ba4 {[%emt 0:00:00]} 47. Bg7 {[%emt 0:00:00]} Nd6 {[%emt 0:00:00]} 48.
f3 {[%emt 0:00:00]} Nf5 {[%emt 0:00:00]} 49. Bh8 {[%emt 0:00:00]} Kc4 {[%emt 0:
00:00]} 50. Ke2 {[%emt 0:00:00]} Nh4 {[%emt 0:00:00]} 51. g3 {[%emt 0:00:00]}
Nf5 {[%emt 0:00:00]} 52. Bf6 {[%emt 0:00:00]} Kd5 {[%emt 0:00:00]} 53. Bh8 {
[%emt 0:00:00]} Nd6 {[%emt 0:00:00]} 54. Bg7 {[%emt 0:00:00]} Nc4 {[%emt 0:00:
00]} 55. Bh8 {[%emt 0:00:00]} Ne5 {[%emt 0:00:00]} 56. Bg7 {[%emt 0:00:00]} Kd6
{[%emt 0:00:00]} 57. f4 {[%emt 0:00:00]} Bb5+ {[%emt 0:00:00]} 58. Kf2 {
[%emt 0:00:00]} Ng4+ {[%emt 0:00:00]} 59. Kg2 {[%emt 0:00:00]} Ba4 {[%emt 0:00:
00]} 60. h3 {[%emt 0:00:00]} Ne3+ {[%emt 0:00:00]} 61. Kf3 {[%emt 0:00:00]} Nf5
{[%emt 0:00:00]} 62. Be5+ {[%emt 0:00:00]} Kd5 {[%emt 0:00:00]} 63. g4 {
[%emt 0:00:00]} Bd1+ {[%emt 0:00:00]} 64. Kf2 {[%emt 0:00:00]} Nd6 {[%emt 0:00:
00]} 65. Ke1 {[%emt 0:00:00]} Ba4 {[%emt 0:00:00]} 66. Ke2 {[%emt 0:00:00]} Nc4
{[%emt 0:00:00]} 67. Bc7 {[%emt 0:00:00]} Ke4 {[%emt 0:00:00]} 68. Kf2 {
[%emt 0:00:00]} Ne3 {[%emt 0:00:00]} 69. Ba5 {[%emt 0:00:00]} Nd5 {[%emt 0:00:
00]} 70. f5 {[%emt 0:00:00]} gxf5 {[%emt 0:00:00]} 71. gxf5 {[%emt 0:00:00]}
Kxf5 {[%emt 0:00:00]} 72. Kg3 {[%emt 0:00:00]} Bd1 {[%emt 0:00:00]} 73. Bd2 {
[%emt 0:00:00]} Ne7 {[%emt 0:00:00]} 74. Bb4 {[%emt 0:00:00]} Nd5 {[%emt 0:00:
17]} 75. Bd2 {[%emt 0:00:00]} Nf6 {[%emt 0:00:00]} 76. Bc1 {[%emt 0:00:00]}
Ne4+ {[%emt 0:00:03]} 77. Kg2 {[%emt 0:00:00]} Ke5 {[%emt 0:00:06]} 78. Kf1 {
[%emt 0:00:00]} Kd4 {[%emt 0:00:19]} 79. Ke1 {[%emt 0:00:00]} Ba4 {[%emt 0:00:
00]} 80. Ke2 {[%emt 0:00:00]} Bb5+ {[%emt 0:00:00]} 81. Ke1 {[%emt 0:00:18]}
Kd3 {[%emt 0:01:00]} 82. Bh6 {[%emt 0:00:06]} Ba4 {[%emt 0:00:00]} 83. h4 {
[%emt 0:00:00]} Nc5 {[%emt 0:00:27]} 84. Bg7 {[%emt 0:00:00]} Nb3 {[%emt 0:00:
02]} 85. Nxb3 {[%emt 0:00:43]} Bxb3 {[%emt 0:00:00]} 0-1

[Event "Gibraltar Masters 18th"]
[Site "Gibraltar"]
[Date "2020.01.22"]
[Round "2.56"]
[White "Narayanan, SL."]
[Black "Reimanis, Ritvars"]
[Result "1-0"]
[ECO "B66"]
[WhiteElo "2637"]
[BlackElo "2370"]
[PlyCount "67"]
[EventDate "2020.01.21"]
[EventType "swiss"]
[EventRounds "10"]
[EventCountry "GGB"]
[SourceTitle "BritBase"]
[Source "John Saunders"]
[SourceDate "2021.06.05"]
[SourceVersion "1"]
[SourceVersionDate "2021.06.05"]
[SourceQuality "1"]
[TimeControl "40/100:0"]
[WhiteClock "0:05:29"]
[BlackClock "0:00:52"]

1. e4 {[%emt 0:00:00]} c5 {[%emt 0:00:00]} 2. Nf3 {[%emt 0:00:00]} Nc6 {
[%emt 0:00:00]} 3. d4 {[%emt 0:00:00]} cxd4 {[%emt 0:00:00]} 4. Nxd4 {[%emt 0:
00:00]} Nf6 {[%emt 0:00:00]} 5. Nc3 {[%emt 0:00:00]} d6 {[%emt 0:00:00]} 6. Bg5
{[%emt 0:00:00]} e6 {[%emt 0:00:00]} 7. Qd3 {[%emt 0:00:00]} a6 {[%emt 0:00:00]
} 8. Nxc6 {[%emt 0:00:00]} bxc6 {[%emt 0:00:00]} 9. O-O-O {[%emt 0:00:00]} h6 {
[%emt 0:00:00]} 10. Bf4 {[%emt 0:00:00]} d5 {[%emt 0:00:00]} 11. Be2 {[%emt 0:
00:00]} Be7 {[%emt 0:00:00]} 12. Qg3 {[%emt 0:00:00]} Kf8 {[%emt 0:00:00]} 13.
Bc7 {[%emt 0:00:00]} Qd7 {[%emt 0:00:00]} 14. Be5 {[%emt 0:00:00]} Ne8 {
[%emt 0:00:00]} 15. Na4 {[%emt 0:00:00]} Qa7 {[%emt 0:00:00]} 16. c4 {[%emt 0:
00:00]} h5 {[%emt 0:00:00]} 17. exd5 {[%emt 0:00:00]} exd5 {[%emt 0:00:00]} 18.
cxd5 {[%emt 0:00:00]} cxd5 {[%emt 0:00:00]} 19. Bd4 {[%emt 0:00:00]} h4 {
[%emt 0:00:00]} 20. Qe3 {[%emt 0:00:00]} Qc7+ {[%emt 0:00:00]} 21. Kb1 {
[%emt 0:00:00]} Rh6 {[%emt 0:00:00]} 22. Ka1 {[%emt 0:00:00]} Qa5 {[%emt 0:00:
00]} 23. Nc3 {[%emt 0:00:00]} Be6 {[%emt 0:00:00]} 24. g4 {[%emt 0:00:00]} Nd6
{[%emt 0:00:00]} 25. f4 {[%emt 0:00:00]} Re8 {[%emt 0:00:00]} 26. f5 {[%emt 0:
00:00]} Bd7 {[%emt 0:00:19]} 27. Bb6 {[%emt 0:00:00]} Qb4 {[%emt 0:00:49]} 28.
Nxd5 {[%emt 0:00:00]} Qa4 {[%emt 0:00:00]} 29. Bc5 {[%emt 0:00:00]} Bc6 {
[%emt 0:00:00]} 30. Bf3 {[%emt 0:00:00]} Bxd5 {[%emt 0:00:00]} 31. Rxd5 {
[%emt 0:00:00]} Nb7 {[%emt 0:00:00]} 32. Bxe7+ {[%emt 0:00:00]} Rxe7 {[%emt 0:
00:00]} 33. Re5 {[%emt 0:00:00]} Rc7 {[%emt 0:00:00]} 34. Bxb7 {[%emt 0:00:00]}
1-0

[Event "Gibraltar Masters 18th"]
[Site "Gibraltar"]
[Date "2020.01.22"]
[Round "2.57"]
[White "Deac, Bogdan-Daniel"]
[Black "Garcia Martin, Marta"]
[Result "1/2-1/2"]
[ECO "D37"]
[WhiteElo "2626"]
[BlackElo "2317"]
[PlyCount "94"]
[EventDate "2020.01.21"]
[EventType "swiss"]
[EventRounds "10"]
[EventCountry "GGB"]
[SourceTitle "BritBase"]
[Source "John Saunders"]
[SourceDate "2021.06.05"]
[SourceVersion "1"]
[SourceVersionDate "2021.06.05"]
[SourceQuality "1"]
[TimeControl "40/100:0"]

1. d4 {[%emt 0:20:02]} d5 {[%emt 0:00:20]} 2. Nf3 {[%emt 0:00:03]} Nf6 {
[%emt 0:00:26]} 3. c4 {[%emt 0:00:02]} e6 {[%emt 0:00:16]} 4. Nc3 {[%emt 0:00:
08]} a6 {[%emt 0:00:59]} 5. cxd5 {[%emt 0:00:21]} exd5 {[%emt 0:00:08]} 6. Bg5
{[%emt 0:02:26]} Be6 {[%emt 0:00:27]} 7. e3 {[%emt 0:00:44]} Nbd7 {[%emt 0:00:
27]} 8. h3 {[%emt 0:00:09]} Bd6 {[%emt 0:03:57]} 9. Bd3 {[%emt 0:03:43]} c6 {
[%emt 0:02:16]} 10. Bf4 {[%emt 0:02:52]} Qc7 {[%emt 0:00:39]} 11. Qd2 {[%emt 0:
00:02]} O-O {[%emt 0:03:49]} 12. O-O {[%emt 0:00:27]} Rfe8 {[%emt 0:10:14]} 13.
Rfe1 {[%emt 0:01:56]} h6 {[%emt 0:13:43]} 14. Rac1 {[%emt 0:01:22]} Nh5 {
[%emt 0:16:58]} 15. Bh2 {[%emt 0:15:05]} Nhf6 {[%emt 0:09:52]} 16. b4 {[%emt 0:
08:34]} Bxh2+ {[%emt 0:07:02]} 17. Nxh2 {[%emt 0:00:08]} b5 {[%emt 0:04:15]}
18. a4 {[%emt 0:15:16]} Qd6 {[%emt 0:01:17]} 19. Rb1 {[%emt 0:00:13]} Nb6 {
[%emt 0:01:30]} 20. a5 {[%emt 0:00:28]} Nc4 {[%emt 0:00:09]} 21. Qc1 {[%emt 0:
02:48]} Re7 {[%emt 0:07:19]} 22. f4 {[%emt 0:37:04]} Rae8 {[%emt 0:05:28]} 23.
Nf3 {[%emt 0:00:31]} Bc8 {[%emt 0:03:36]} 24. Ne5 {[%emt 0:00:26]} Nd7 {
[%emt 0:02:32]} 25. Re2 {[%emt 0:04:11]} Nf8 {[%emt 0:02:01]} 26. Nd1 {[%emt 0:
00:55]} Be6 {[%emt 0:03:10]} 27. Nf3 {[%emt 0:06:41]} Bc8 {[%emt 0:04:00]} 28.
Qc3 {[%emt 0:03:02]} Re6 {[%emt 0:04:12]} 29. Rc1 {[%emt 0:03:37]} Qe7 {
[%emt 0:00:44]} 30. f5 {[%emt 0:00:39]} Rf6 {[%emt 0:02:03]} 31. e4 {[%emt 0:
00:10]} dxe4 {[%emt 0:00:23]} 32. Rxe4 {[%emt 0:00:08]} Qd8 {[%emt 0:00:15]}
33. Rxe8 {[%emt 0:01:33]} Qxe8 {[%emt 0:00:03]} 34. Bxc4 {[%emt 0:00:44]} bxc4
{[%emt 0:00:04]} 35. Qxc4 {[%emt 0:00:06]} Qe4 {[%emt 0:02:49]} 36. Nf2 {
[%emt 0:00:43]} Qxf5 {[%emt 0:00:28]} 37. Ng4 {[%emt 0:00:10]} Rd6 {[%emt 0:00:
36]} 38. Nge5 {[%emt 0:01:09]} Qf4 {[%emt 0:00:34]} 39. Rf1 {[%emt 0:00:37]}
Ne6 {[%emt 0:00:31]} 40. Qc1 {[%emt 0:00:33]} Nxd4 {[%emt 0:00:31]} 41. Qxf4 {
[%emt 0:02:29]} Ne2+ {[%emt 0:00:04]} 42. Kh2 {[%emt 0:00:59]} Nxf4 {[%emt 0:
00:05]} 43. Rc1 {[%emt 0:00:08]} Bb7 {[%emt 0:03:38]} 44. Rc4 {[%emt 0:00:14]}
Ne6 {[%emt 0:02:52]} 45. Rc3 {[%emt 0:01:06]} Nf4 {[%emt 0:13:48]} 46. Rc4 {
[%emt 0:00:27]} Ne6 {[%emt 0:02:59]} 47. Rc3 {[%emt 0:00:08]} Nf4 {[%emt 0:00:
53]} 1/2-1/2

[Event "Gibraltar Masters 18th"]
[Site "Gibraltar"]
[Date "2020.01.23"]
[Round "3.1"]
[White "Moussard, Jules"]
[Black "Mamedyarov, Shakhriyar"]
[Result "1/2-1/2"]
[ECO "C81"]
[WhiteElo "2600"]
[BlackElo "2770"]
[PlyCount "34"]
[EventDate "2020.01.21"]
[EventType "swiss"]
[EventRounds "10"]
[EventCountry "GGB"]
[SourceTitle "BritBase"]
[Source "John Saunders"]
[SourceDate "2021.06.05"]
[SourceVersion "1"]
[SourceVersionDate "2021.06.05"]
[SourceQuality "1"]
[TimeControl "40/100:0"]
[WhiteClock "1:39:16"]
[BlackClock "1:44:43"]

1. e4 {[%emt 0:00:00]} e5 {[%emt 0:00:00]} 2. Nf3 {[%emt 0:00:00]} Nc6 {
[%emt 0:00:00]} 3. Bb5 {[%emt 0:00:00]} a6 {[%emt 0:00:00]} 4. Ba4 {[%emt 0:00:
00]} Nf6 {[%emt 0:00:00]} 5. O-O {[%emt 0:00:00]} Nxe4 {[%emt 0:00:00]} 6. d4 {
[%emt 0:00:00]} b5 {[%emt 0:00:00]} 7. Bb3 {[%emt 0:00:00]} d5 {[%emt 0:00:00]}
8. dxe5 {[%emt 0:00:00]} Be6 {[%emt 0:00:00]} 9. Qe2 {[%emt 0:00:00]} Nc5 {
[%emt 0:00:00]} 10. Rd1 {[%emt 0:00:00]} Nxb3 {[%emt 0:00:00]} 11. axb3 {
[%emt 0:00:00]} Be7 {[%emt 0:00:00]} 12. c4 {[%emt 0:00:00]} b4 {[%emt 0:00:00]
} 13. cxd5 {[%emt 0:00:00]} Bxd5 {[%emt 0:00:00]} 14. Qd3 {[%emt 0:00:00]} Be4
{[%emt 0:00:00]} 15. Qe2 {[%emt 0:00:00]} Bd5 {[%emt 0:00:00]} 16. Qd3 {
[%emt 0:00:00]} Be4 {[%emt 0:00:00]} 17. Qe2 {[%emt 0:00:00]} Bd5 {[%emt 0:00:
10]} 1/2-1/2

[Event "Gibraltar Masters 18th"]
[Site "Gibraltar"]
[Date "2020.01.23"]
[Round "3.2"]
[White "Le, Quang Liem"]
[Black "Vaibhav, Suri"]
[Result "1/2-1/2"]
[ECO "B23"]
[WhiteElo "2713"]
[BlackElo "2593"]
[PlyCount "89"]
[EventDate "2020.01.21"]
[EventType "swiss"]
[EventRounds "10"]
[EventCountry "GGB"]
[SourceTitle "BritBase"]
[Source "John Saunders"]
[SourceDate "2021.06.05"]
[SourceVersion "1"]
[SourceVersionDate "2021.06.05"]
[SourceQuality "1"]
[TimeControl "40/100:0"]
[WhiteClock "0:51:24"]
[BlackClock "0:47:18"]

1. e4 {[%emt 0:00:00]} c5 {[%emt 0:00:00]} 2. Nc3 {[%emt 0:00:00]} d6 {[%emt 0:
00:00]} 3. d4 {[%emt 0:00:00]} cxd4 {[%emt 0:00:00]} 4. Qxd4 {[%emt 0:00:00]}
Nc6 {[%emt 0:00:00]} 5. Qd2 {[%emt 0:00:00]} g6 {[%emt 0:00:00]} 6. b3 {
[%emt 0:00:00]} Bh6 {[%emt 0:00:00]} 7. f4 {[%emt 0:00:00]} f5 {[%emt 0:00:00]}
8. Bb2 {[%emt 0:00:00]} Nf6 {[%emt 0:00:00]} 9. Bd3 {[%emt 0:00:00]} Qa5 {
[%emt 0:00:00]} 10. exf5 {[%emt 0:00:00]} Bxf5 {[%emt 0:00:00]} 11. Nge2 {
[%emt 0:00:00]} O-O-O {[%emt 0:00:00]} 12. O-O-O {[%emt 0:00:00]} d5 {[%emt 0:
00:00]} 13. Kb1 {[%emt 0:00:00]} d4 {[%emt 0:00:00]} 14. Nb5 {[%emt 0:00:00]}
Qxd2 {[%emt 0:00:00]} 15. Rxd2 {[%emt 0:00:00]} Bg4 {[%emt 0:00:00]} 16. Nbxd4
{[%emt 0:00:00]} Nxd4 {[%emt 0:00:00]} 17. Bxd4 {[%emt 0:00:00]} Rxd4 {[%emt 0:
00:00]} 18. Nxd4 {[%emt 0:00:00]} Bxf4 {[%emt 0:00:00]} 19. Re2 {[%emt 0:00:00]
} Bxe2 {[%emt 0:00:00]} 20. Nxe2 {[%emt 0:00:00]} Be5 {[%emt 0:00:00]} 21. h3 {
[%emt 0:00:00]} Rf8 {[%emt 0:00:00]} 22. Rf1 {[%emt 0:00:00]} Nd7 {[%emt 0:00:
00]} 23. Rxf8+ {[%emt 0:00:00]} Nxf8 {[%emt 0:00:00]} 24. Bc4 {[%emt 0:00:00]}
Kc7 {[%emt 0:00:00]} 25. Kc1 {[%emt 0:00:00]} Nd7 {[%emt 0:00:00]} 26. Kd2 {
[%emt 0:00:00]} Nf6 {[%emt 0:00:43]} 27. b4 a6 28. a4 Bd6 29. c3 e5 30. a5 Bf8
31. Bb3 b6 32. axb6+ Kxb6 33. Kd3 a5 34. Kc4 axb4 35. cxb4 Nh5 36. g3 Bd6 37.
Bc2 e4 38. g4 Nf4 39. Nxf4 Bxf4 40. Bxe4 Bg3 41. b5 Bh2 42. Bd3 g5 43. Bxh7 Bg3
44. Bd3 Bh4 {[%emt 0:00:00]} 45. Be4 {[%emt 0:00:00]} 1/2-1/2